bitfinex-derivatives/quotes_BNBF0:USTF0_20250904
["timestamp","ask_amount","ask_price","bid_price","bid_amount"]
[1756956453309,1.5724004,852.31,851.33,0.79017089]
[1756956453509,1.5724004,852.31,851.34,1.29230194]
[1756956453707,1.5724004,852.31,851.35,1.29230194]
[1756956454011,1.5724004,852.31,851.36,1.29230194]
[1756956454210,1.5724004,852.31,851.37,1.29230194]
[1756956454412,1.5724004,852.31,851.38,1.29230194]
[1756956454607,1.5724004,852.31,851.32,0.79017089]
[1756956454608,1.5724004,852.3,851.39,1.29230194]
[1756956454812,1.5724004,852.3,851.4,1.29230194]
[1756956455113,1.5724004,852.4,851.41,1.29230194]
[1756956455313,1.5724004,852.34,851.42,1.29230194]
[1756956455514,1.5724004,852.36,851.43,0.58726298]
[1756956455814,1.5724004,852.37,851.44,0.58726298]
[1756956456015,1.5724004,852.2,851.45,0.58726298]
[1756956456312,1.5724004,852.24,851.46,0.58726298]
[1756956456510,1.5724004,852.24,851.47,0.58726298]
[1756956456715,1.5724004,852.19,851.48,0.58726298]
[1756956456913,1.5724004,852.19,851.49,0.58726298]
[1756956457210,1.5724004,852.15,851.5,0.58726298]
[1756956457415,1.5724004,852.17,850.98,0.79017089]
[1756956457612,1.5724004,852.17,850.99,1.29189916]
[1756956457812,1.5724004,852.17,851.0,1.29189916]
[1756956458117,1.5724004,852.14,851.01,1.29189916]
[1756956458416,1.5724004,852.13,851.02,1.29189916]
[1756956458613,1.5724004,852.13,851.03,1.29189916]
[1756956458917,1.5724004,852.13,851.04,1.29189916]
[1756956459115,1.5724004,852.13,851.05,1.29189916]
[1756956459316,1.5724004,852.13,851.06,1.29189916]
[1756956459512,1.5724004,852.14,851.07,1.29189916]
[1756956459716,1.5724004,852.14,851.08,1.29189916]
[1756956459914,1.5724004,852.14,851.09,1.29189916]
[1756956460113,1.5724004,852.14,851.1,1.29189916]
[1756956460314,1.5724004,852.14,851.11,1.29189916]
[1756956460517,1.5724004,852.15,851.12,1.29189916]
[1756956460718,1.5724004,852.15,851.13,1.29189916]
[1756956460914,1.5724004,852.15,851.14,1.29189916]
[1756956461118,1.5724004,852.15,851.15,1.29189916]
[1756956461318,1.5724004,852.17,851.16,1.29189916]
[1756956461519,1.5724004,852.17,851.17,1.29189916]
[1756956461813,1.5724004,852.17,851.18,1.29189916]
[1756956462017,1.5724004,852.17,851.19,1.29189916]
[1756956462217,1.5724004,852.15,851.2,1.29189916]
[1756956462414,1.5724004,852.16,851.21,0.58744477]
[1756956462617,1.5724004,852.16,851.22,0.58744477]
[1756956462818,1.5724004,852.16,851.23,0.58744477]
[1756956463014,1.5724004,852.16,851.24,0.58744477]
[1756956463318,1.5724004,852.14,851.25,0.58744477]
[1756956463516,1.5724004,852.16,851.26,0.58744477]
[1756956463719,1.5724004,852.16,851.27,0.58744477]
[1756956464020,1.5724004,852.16,851.28,0.58744477]
[1756956464216,1.5724004,852.16,851.29,0.58744477]
[1756956464420,1.5724004,852.18,850.83,0.79017089]
[1756956464618,1.5724004,852.18,850.84,1.29054164]
[1756956464817,1.5724004,852.18,850.85,1.29054164]
[1756956465018,1.5724004,852.18,850.86,1.29054164]
[1756956465322,1.5724004,852.24,850.87,1.29054164]
[1756956465619,1.5724004,852.24,850.88,1.29054164]
[1756956465818,1.5724004,852.24,850.89,1.29054164]
[1756956466019,1.5724004,852.24,850.9,1.29054164]
[1756956466223,1.5724004,852.24,850.91,1.29054164]
[1756956466421,1.5724004,852.25,850.92,1.29054164]
[1756956466718,1.5724004,852.25,850.93,1.29054164]
[1756956466923,1.5724004,852.25,850.44,1.77952798]
[1756956466924,1.5724004,852.25,850.94,1.29054164]
[1756956467223,1.5724004,852.25,850.95,1.29054164]
[1756956467423,1.5724004,852.27,850.96,1.29054164]
[1756956467620,1.5724004,852.27,850.97,1.29054164]
[1756956467923,1.5724004,852.27,850.98,1.29054164]
[1756956468223,1.5724004,852.27,850.99,1.29054164]
[1756956468419,1.5724004,852.28,851.0,1.29054164]
[1756956468622,1.5724004,852.28,851.01,1.29054164]
[1756956468821,1.5724004,852.28,851.02,1.29054164]
[1756956469120,1.5724004,852.29,851.03,1.29054164]
[1756956469323,1.5724004,852.31,851.04,1.29054164]
[1756956469621,1.5724004,852.32,851.05,1.29054164]
[1756956469821,1.5724004,852.32,851.06,1.29054164]
[1756956470021,1.5724004,852.32,851.07,1.29054164]
[1756956470224,1.5724004,852.32,851.08,1.29054164]
[1756956470524,1.5724004,852.33,851.09,1.29054164]
[1756956470825,1.5724004,852.33,851.1,1.29054164]
[1756956471124,1.5724004,852.33,851.11,1.29054164]
[1756956471420,2.620247,853.15,851.12,1.29054164]
[1756956471421,1.5724004,852.34,851.12,1.29054164]
[1756956471621,1.5724004,852.34,851.13,1.29054164]
[1756956471822,1.5724004,852.37,851.14,1.29054164]
[1756956472022,1.5724004,852.34,851.15,0.58749684]
[1756956472225,1.5724004,852.34,850.71,0.79017089]
[1756956472426,1.5724004,852.34,850.72,2.08026646]
[1756956472726,1.5724004,852.34,850.73,1.29009557]
[1756956473022,1.5724004,852.34,850.74,1.29009557]
[1756956473222,1.5724004,852.34,850.75,1.2900854]
[1756956473422,1.5724004,852.34,850.76,1.2900854]
[1756956473623,1.5724004,852.34,850.77,1.2900854]
[1756956473823,1.5724004,852.33,850.78,1.2900854]
[1756956474123,1.5724004,852.35,850.79,1.2900854]
[1756956474323,1.5724004,852.36,850.8,1.2900854]
[1756956474625,1.5724004,852.36,850.81,1.2900854]
[1756956474822,1.5724004,852.36,850.82,1.2900854]
[1756956475027,1.5724004,852.36,850.83,1.2900854]
[1756956475227,1.5724004,852.35,850.84,1.2900854]
[1756956475528,1.5724004,852.36,850.85,1.2900854]
[1756956475722,1.5724004,852.36,850.86,1.2900854]
[1756956475925,1.5724004,852.36,850.87,1.2900854]
[1756956476124,1.5724004,852.36,850.88,1.2900854]
[1756956476424,1.5724004,852.37,850.89,1.2900854]
[1756956476623,0.20436387,852.0,850.9,1.2900854]
[1756956476820,0.20436387,852.0,850.91,1.2900854]
[1756956477027,0.20436387,852.0,850.72,0.78762261]
[1756956477028,0.20436387,852.0,850.92,1.2900854]
[1756956477328,0.20436387,852.0,850.93,1.2900854]
[1756956477625,0.20436387,852.0,850.94,1.2900854]
[1756956477828,0.20436387,852.0,850.95,1.2900854]
[1756956478029,0.20436387,852.0,850.73,0.78762261]
[1756956478030,0.20436387,852.0,850.96,1.2900854]
[1756956478227,0.20436387,852.0,850.97,1.2900854]
[1756956478430,0.20436387,852.0,850.98,1.2900854]
[1756956478730,0.20436387,852.0,850.99,1.2900854]
[1756956478928,0.20436387,852.0,851.0,1.2900854]
[1756956479128,0.20436387,852.0,851.01,1.2900854]
[1756956479327,0.20436387,852.0,851.02,1.2900854]
[1756956479530,0.20436387,852.0,851.03,1.2900854]
[1756956479727,0.20436387,852.0,851.04,1.2900854]
[1756956479930,0.20436387,852.0,851.05,1.2900854]
[1756956480127,0.20436387,852.0,851.06,1.2900854]
[1756956480327,0.20436387,852.0,851.07,1.2900854]
[1756956480530,0.20436387,852.0,851.08,1.2900854]
[1756956480730,0.20436387,852.0,851.09,0.58755442]
[1756956480925,0.20436387,852.0,851.1,0.58755442]
[1756956481130,0.20436387,852.0,851.11,0.58755442]
[1756956481330,0.20436387,852.0,851.12,0.58755442]
[1756956481531,0.20436387,852.0,851.13,0.58755442]
[1756956481831,0.20436387,852.0,851.14,0.58755442]
[1756956482031,0.20436387,852.0,850.75,0.78762261]
[1756956482327,0.20436387,852.0,850.76,1.28949398]
[1756956482527,0.20436387,852.0,850.77,1.28949398]
[1756956482726,0.20436387,852.0,850.72,0.78762261]
[1756956482727,0.20436387,852.0,850.78,1.28949398]
[1756956482930,0.20436387,852.0,850.79,1.28949398]
[1756956483129,0.20436387,852.0,850.8,1.28949398]
[1756956483328,0.20436387,852.0,850.81,1.28949398]
[1756956483533,0.20436387,852.0,850.82,1.28949398]
[1756956483833,0.20436387,852.0,850.83,1.28949398]
[1756956484033,0.20436387,852.0,850.84,1.28949398]
[1756956484233,0.20436387,852.0,850.85,1.28949398]
[1756956484429,0.20436387,852.0,850.86,1.28949398]
[1756956484633,0.20436387,852.0,850.87,1.28949398]
[1756956484835,0.20436387,852.0,850.88,1.28949398]
[1756956485033,0.20436387,852.0,850.89,1.28949398]
[1756956485235,0.20436387,852.0,850.9,1.28949398]
[1756956485433,0.20436387,852.0,850.91,1.28949398]
[1756956485734,0.20436387,852.0,850.92,1.28949398]
[1756956485932,0.20436387,852.0,850.93,1.28949398]
[1756956486132,0.20436387,852.0,850.94,1.28949398]
[1756956486331,0.20436387,852.0,850.95,1.28949398]
[1756956486635,0.20436387,852.0,850.96,1.28949398]
[1756956486832,0.20436387,852.0,850.97,1.28949398]
[1756956487034,0.20436387,852.0,850.71,0.78762261]
[1756956487035,0.20436387,852.0,850.98,1.28949398]
[1756956487232,0.20436387,852.0,850.99,1.28949398]
[1756956487433,0.20436387,852.0,851.0,1.28949398]
[1756956487633,0.20436387,852.0,851.01,1.28949398]
[1756956487834,0.20436387,852.0,851.02,1.28949398]
[1756956488037,0.20436387,852.0,851.03,1.28949398]
[1756956488234,0.20436387,852.0,851.04,0.5875549]
[1756956488533,0.20436387,852.0,851.05,0.5875549]
[1756956488737,0.20436387,852.0,851.06,0.5875549]
[1756956488932,0.20436387,852.0,851.07,0.5875549]
[1756956489134,0.20436387,852.0,851.08,0.5875549]
[1756956489432,0.20436387,852.0,851.09,0.5875549]
[1756956489633,0.20436387,852.0,851.1,0.5875549]
[1756956489837,0.20436387,852.0,851.11,0.5875549]
[1756956490034,0.20436387,852.0,851.12,0.5875549]
[1756956490233,0.20436387,852.0,851.13,0.5875549]
[1756956490537,0.20436387,852.0,851.14,0.5875549]
[1756956490735,0.20436387,852.0,851.15,0.5875549]
[1756956490943,0.20436387,852.0,851.16,0.5875549]
[1756956491235,0.20436387,852.0,851.17,0.5875549]
[1756956491438,0.20436387,852.0,850.61,0.78762261]
[1756956491640,0.20436387,852.0,850.2,1.5752211]
[1756956491641,0.20436387,852.0,850.62,1.28993935]
[1756956491840,0.20436387,852.0,850.63,1.28993935]
[1756956492136,0.20436387,852.0,850.64,1.28993935]
[1756956492336,0.20436387,852.0,850.65,1.28993935]
[1756956492539,0.20436387,852.0,850.66,1.28993935]
[1756956492839,0.20436387,852.0,850.67,1.28993935]
[1756956493039,0.20436387,852.0,850.68,1.28993935]
[1756956493239,0.20436387,852.0,850.69,1.28993935]
[1756956493437,0.20436387,852.0,850.56,0.78762261]
[1756956493438,0.20436387,852.0,850.7,1.28993935]
[1756956493637,0.20436387,852.0,850.71,1.28993935]
[1756956493837,0.20436387,852.0,850.72,1.28993935]
[1756956494040,0.20436387,852.0,850.73,1.28993935]
[1756956494336,0.20436387,852.0,850.74,1.28993935]
[1756956494641,0.20436387,852.0,850.75,1.28993935]
[1756956494840,0.20436387,852.0,850.76,1.28993935]
[1756956495135,0.20436387,852.0,850.77,1.28993935]
[1756956495339,0.20436387,852.0,850.78,1.28993935]
[1756956495536,0.20436387,852.0,850.79,1.28993935]
[1756956495740,0.20436387,852.0,850.8,1.28993935]
[1756956495940,0.20436387,852.0,850.81,1.28993935]
[1756956496237,0.20436387,852.0,850.82,1.28993935]
[1756956496436,0.20436387,852.0,850.56,0.78762261]
[1756956496437,0.20436387,852.0,850.83,1.28993935]
[1756956496635,0.20436387,852.0,850.84,1.28993935]
[1756956496837,0.20436387,852.0,850.85,1.28993935]
[1756956497037,0.20436387,852.0,850.86,1.28993935]
[1756956497238,0.20436387,852.0,850.87,1.28993935]
[1756956497441,0.20436387,852.0,850.88,1.28993935]
[1756956497742,0.20436387,852.0,850.89,1.28993935]
[1756956497939,0.20436387,852.0,850.9,1.28993935]
[1756956498142,0.20436387,852.0,850.91,1.28993935]
[1756956498438,0.20436387,852.0,850.92,1.28993935]
[1756956498639,0.20436387,852.0,850.93,1.28993935]
[1756956498839,0.20436387,852.0,850.94,1.28993935]
[1756956499038,0.20436387,852.0,850.95,0.58766861]
[1756956499239,0.20436387,852.0,850.96,0.58766861]
[1756956499445,0.20436387,852.0,850.97,0.58766861]
[1756956499742,0.20436387,852.0,850.98,0.58766861]
[1756956499942,0.20436387,852.0,850.99,0.58766861]
[1756956500140,0.20436387,852.0,851.0,0.58766861]
[1756956500344,0.20436387,852.0,851.01,0.58766861]
[1756956500540,0.20436387,852.0,850.55,0.78762261]
[1756956500742,0.20436387,852.0,850.56,1.29021042]
[1756956500946,0.20436387,852.0,850.57,1.29021042]
[1756956501243,0.20436387,852.0,850.09,0.20436687]
[1756956501244,0.20436387,852.0,850.58,1.29021042]
[1756956501547,0.20436387,852.0,850.59,1.29021042]
[1756956501846,0.20436387,852.0,850.6,1.29021042]
[1756956502143,0.20436387,852.0,850.61,1.29021042]
[1756956502342,0.20436387,852.0,850.62,1.29021042]
[1756956502544,0.20436387,852.0,850.63,1.29021042]
[1756956502745,0.20436387,852.0,850.64,1.29021042]
[1756956502946,0.20436387,852.0,850.65,1.29021042]
[1756956503246,0.20436387,852.0,850.66,1.29021042]
[1756956503544,0.20436387,852.0,850.67,1.29021042]
[1756956503843,0.20436387,852.0,850.68,1.29021042]
[1756956504048,0.20436387,852.0,850.69,1.29021042]
[1756956504252,0.20436387,852.0,850.7,1.29021042]
[1756956504452,0.20436387,852.0,850.71,1.29021042]
[1756956504651,0.20436387,852.0,850.72,1.29021042]
[1756956504850,0.20436387,852.0,850.73,1.29021042]
[1756956505149,0.20436387,852.0,850.74,1.29021042]
[1756956505353,0.20436387,852.0,850.75,1.29021042]
[1756956505553,0.20436387,852.0,850.76,1.29021042]
[1756956505849,0.20436387,852.0,850.77,1.29021042]
[1756956506054,0.20436387,852.0,850.78,1.29021042]
[1756956506248,0.20436387,852.0,850.79,1.29021042]
[1756956506449,0.20436387,852.0,850.8,1.29021042]
[1756956506648,0.20436387,852.0,850.81,1.29021042]
[1756956506949,0.20436387,852.0,850.82,1.29021042]
[1756956507151,0.20436387,852.0,850.83,1.29021042]
[1756956507448,0.20436387,852.0,850.84,1.29021042]
[1756956507652,0.20436387,852.0,850.85,1.29021042]
[1756956507850,0.20436387,852.0,850.86,1.29021042]
[1756956508050,0.20436387,852.0,850.87,1.29021042]
[1756956508250,0.20436387,852.0,850.88,1.29021042]
[1756956508450,0.20436387,852.0,850.89,1.29021042]
[1756956508649,0.20436387,852.0,850.9,1.29021042]
[1756956508854,0.20436387,852.0,850.91,1.29021042]
[1756956509051,0.20436387,852.0,850.92,1.29021042]
[1756956509250,0.20436387,852.0,850.93,0.58768623]
[1756956509454,0.20436387,852.0,850.94,0.58768623]
[1756956509651,0.20436387,852.0,850.95,0.58768623]
[1756956509854,0.20436387,852.0,850.96,0.58768623]
[1756956510150,0.20436387,852.0,850.97,0.58768623]
[1756956510355,0.20436387,852.0,850.98,0.58768623]
[1756956510554,0.20436387,852.0,850.99,0.58768623]
[1756956510856,0.20436387,852.0,851.0,0.58768623]
[1756956511056,0.20436387,852.0,851.01,0.58768623]
[1756956511255,0.20436387,852.0,851.02,0.58768623]
[1756956511456,0.20436387,852.0,851.03,0.58768623]
[1756956511653,0.20436387,852.0,851.04,0.58768623]
[1756956511953,0.20436387,852.0,850.55,0.78870832]
[1756956511954,1.77676427,852.0,850.55,0.78870832]
[1756956512158,1.5724004,851.87,850.59,0.78870832]
[1756956512356,1.5724004,851.84,850.6,1.29138171]
[1756956512553,1.5724004,851.84,850.61,1.29138171]
[1756956512758,1.5724004,851.92,850.62,1.29138171]
[1756956513054,1.5724004,851.92,850.63,1.29138171]
[1756956513254,1.5724004,851.92,850.64,1.29138171]
[1756956513454,1.5724004,851.88,850.65,1.29138171]
[1756956513658,1.5724004,851.88,850.66,1.29138171]
[1756956513860,1.5724004,851.88,850.67,1.29138171]
[1756956514058,1.5724004,851.88,850.68,1.29138171]
[1756956514253,1.5724004,851.89,850.69,1.29138171]
[1756956514455,1.5724004,851.87,850.7,1.29138171]
[1756956514759,1.5724004,851.91,850.71,1.29138171]
[1756956514959,0.20436387,852.0,850.72,1.29138171]
[1756956515153,0.20436387,852.0,850.73,1.29138171]
[1756956515355,0.20436387,852.0,850.74,1.29138171]
[1756956515655,0.20436387,852.0,850.75,1.29138171]
[1756956515855,0.20436387,852.0,850.76,1.29138171]
[1756956516056,0.20436387,852.0,850.77,1.29138171]
[1756956516257,0.20436387,852.0,850.45,0.78870832]
[1756956516258,0.20436387,852.0,850.78,1.29138171]
[1756956516559,0.20436387,852.0,850.79,1.29138171]
[1756956516758,0.20436387,852.0,850.8,1.29138171]
[1756956516957,0.20436387,852.0,850.81,1.29138171]
[1756956517155,0.20436387,852.0,850.82,1.29138171]
[1756956517458,0.20436387,852.0,850.83,1.29138171]
[1756956517656,0.20436387,852.0,850.84,1.29138171]
[1756956517960,0.20436387,852.0,850.85,1.29138171]
[1756956518156,0.20436387,852.0,850.86,1.29138171]
[1756956518357,0.20436387,852.0,850.87,1.29138171]
[1756956518556,0.20436387,852.0,850.88,1.29138171]
[1756956518759,0.20436387,852.0,850.89,1.29138171]
[1756956518962,0.20436387,852.0,850.9,1.29138171]
[1756956519160,0.20436387,852.0,850.91,1.29138171]
[1756956519357,0.20436387,852.0,850.92,1.29138171]
[1756956519561,0.20436387,852.0,850.93,1.29138171]
[1756956519757,0.20436387,852.0,850.94,1.29138171]
[1756956519961,0.20436387,852.0,850.95,1.29138171]
[1756956520161,0.20436387,852.0,850.96,1.29138171]
[1756956520461,0.20436387,852.0,850.97,1.29138171]
[1756956520661,0.20436387,852.0,850.98,1.29138171]
[1756956520861,0.20436387,852.0,850.39,0.78870832]
[1756956520862,0.20436387,852.0,850.99,1.29138171]
[1756956521156,0.20436387,852.0,851.0,1.29138171]
[1756956521361,0.20436387,852.0,851.01,1.29138171]
[1756956521561,0.20436387,852.0,851.02,1.29138171]
[1756956521763,0.20436387,852.0,851.03,0.70369409]
[1756956522058,0.20436387,852.0,851.04,1.29138219]
[1756956522263,0.20436387,852.0,851.05,1.29138219]
[1756956522460,0.20436387,852.0,851.06,0.5876881]
[1756956522656,0.20436387,852.0,851.07,0.5876881]
[1756956522857,0.20436387,852.0,851.08,0.5876881]
[1756956523059,0.20436387,852.0,851.09,0.5876881]
[1756956523361,0.20436387,852.0,851.1,0.5876881]
[1756956523558,0.20436387,852.0,851.11,0.5876881]
[1756956523858,0.20436387,852.0,851.12,0.5876881]
[1756956524059,0.20436387,852.0,851.13,0.5876881]
[1756956524262,0.20436387,852.0,851.14,0.5876881]
[1756956524460,0.20436387,852.0,851.15,0.5876881]
[1756956524660,0.20436387,852.0,851.16,0.5876881]
[1756956524865,0.20436387,852.0,851.17,0.5876881]
[1756956525063,0.20436387,852.0,851.18,0.5876881]
[1756956525360,0.20436387,852.0,851.19,0.5876881]
[1756956525563,0.20436387,852.0,851.2,0.5876881]
[1756956525859,0.20436387,852.0,851.21,0.5876881]
[1756956526062,0.20436387,852.0,851.22,0.5876881]
[1756956526364,0.20436387,852.0,851.23,0.5876881]
[1756956526561,0.20436387,852.0,850.42,0.78870832]
[1756956526764,0.20436387,852.0,850.43,1.2928856]
[1756956527061,0.20436387,852.0,850.44,1.2928856]
[1756956527264,0.20436387,852.0,850.45,1.2928856]
[1756956527460,0.20436387,852.0,850.46,1.2928856]
[1756956527660,0.20436387,852.0,850.47,1.2928856]
[1756956527864,0.20436387,852.0,850.48,1.2928856]
[1756956528159,0.20436387,852.0,850.49,1.2928856]
[1756956528362,0.20436387,852.0,850.5,1.2928856]
[1756956528561,0.20436387,852.0,850.51,2.08159392]
[1756956528761,0.20436387,852.0,850.52,1.2928856]
[1756956528961,0.20436387,852.0,850.53,1.2928856]
[1756956529163,0.20436387,852.0,850.54,1.2928856]
[1756956529363,0.20436387,852.0,850.55,1.2928856]
[1756956529566,0.20436387,852.0,850.56,1.2928856]
[1756956529863,0.20436387,852.0,850.09,0.20436687]
[1756956529864,0.20436387,852.0,850.57,1.2928856]
[1756956530067,0.20436387,852.0,850.58,1.2928856]
[1756956530264,0.20436387,852.0,850.59,1.2928856]
[1756956530467,0.20436387,852.0,850.6,1.2928856]
[1756956530763,0.20436387,852.0,850.61,1.2928856]
[1756956531063,0.20436387,852.0,850.62,1.2928856]
[1756956531267,0.20436387,852.0,850.63,1.2928856]
[1756956531466,0.20436387,852.0,850.53,0.78870832]
[1756956531467,0.20436387,852.0,850.64,1.2928856]
[1756956531768,0.20436387,852.0,850.65,1.2928856]
[1756956531964,0.20436387,852.0,850.66,1.2928856]
[1756956532166,0.20436387,852.0,850.67,1.2928856]
[1756956532462,0.20436387,852.0,850.68,1.2928856]
[1756956532667,0.20436387,852.0,850.69,1.2928856]
[1756956532967,0.20436387,852.0,850.7,1.2928856]
[1756956533264,0.20436387,852.0,850.71,1.2928856]
[1756956533469,0.20436387,852.0,850.72,1.2928856]
[1756956533665,0.20436387,852.0,850.73,1.2928856]
[1756956533868,0.20436387,852.0,850.74,1.2928856]
[1756956534068,0.20436387,852.0,850.75,1.2928856]
[1756956534269,0.20436387,852.0,850.76,1.2928856]
[1756956534469,0.20436387,852.0,850.77,1.2928856]
[1756956534768,0.20436387,852.0,850.78,1.2928856]
[1756956535066,0.20436387,852.0,850.79,1.2928856]
[1756956535265,0.20436387,852.0,850.8,1.2928856]
[1756956535469,0.20436387,852.0,850.81,1.2928856]
[1756956535770,0.20436387,852.0,850.82,1.2928856]
[1756956535970,0.20436387,852.0,850.83,1.2928856]
[1756956536166,0.20436387,852.0,850.84,1.2928856]
[1756956536470,0.20436387,852.0,850.85,1.2928856]
[1756956536670,0.20436387,852.0,850.86,1.2928856]
[1756956536967,0.20436387,852.0,850.87,1.2928856]
[1756956537168,0.20436387,852.0,850.88,1.2928856]
[1756956537370,0.20436387,852.0,850.89,1.2928856]
[1756956537666,0.20436387,852.0,850.9,1.2928856]
[1756956537868,0.20436387,852.0,850.91,1.2928856]
[1756956538069,0.20436387,852.0,850.92,1.2928856]
[1756956538370,0.20436387,852.0,850.93,1.2928856]
[1756956538567,0.20436387,852.0,850.94,1.2928856]
[1756956538766,0.20436387,852.0,850.95,1.2928856]
[1756956538966,0.20436387,852.0,850.96,1.2928856]
[1756956539166,0.20436387,852.0,850.97,1.2928856]
[1756956539369,0.20436387,852.0,850.98,1.2928856]
[1756956539573,0.20436387,852.0,850.99,1.2928856]
[1756956539770,0.20436387,852.0,850.56,0.78870832]
[1756956539771,0.20436387,852.0,851.0,1.2928856]
[1756956539972,0.20436387,852.0,851.01,1.2928856]
[1756956540174,0.20436387,852.0,851.02,1.2928856]
[1756956540374,0.20436387,852.0,851.03,1.2928856]
[1756956540574,0.20436387,852.0,851.04,1.2928856]
[1756956540874,0.20436387,852.0,851.05,1.2928856]
[1756956541074,0.20436387,852.0,851.06,1.2928856]
[1756956541274,0.20436387,852.0,851.07,0.58768805]
[1756956541574,0.20436387,852.0,851.08,0.58768805]
[1756956541773,0.20436387,852.0,851.09,0.58768805]
[1756956541971,0.20436387,852.0,850.62,0.78870832]
[1756956541972,0.20436387,852.0,851.1,0.58768805]
[1756956542170,0.20436387,852.0,851.11,0.58768805]
[1756956542373,0.20436387,852.0,850.62,0.78870832]
[1756956542374,0.20436387,852.0,851.12,1.29367926]
[1756956542672,0.20436387,852.0,851.13,1.29367926]
[1756956542871,0.20436387,852.0,851.14,1.29367926]
[1756956543171,0.20436387,852.0,851.15,1.29367926]
[1756956543370,0.20436387,852.0,851.16,1.29367926]
[1756956543670,0.20436387,852.0,851.17,1.29367926]
[1756956543876,0.20436387,852.0,851.18,1.29367926]
[1756956544073,0.20436387,852.0,851.19,1.29367926]
[1756956544374,0.20436387,852.0,851.2,0.58768805]
[1756956544573,0.20436387,852.0,851.21,0.58768805]
[1756956544773,0.20436387,852.0,851.22,0.58768805]
[1756956544971,0.20436387,852.0,851.23,0.58768805]
[1756956545170,0.20436387,852.0,851.24,0.58768805]
[1756956545375,0.20436387,852.0,850.74,0.78870832]
[1756956545376,0.20436387,852.0,851.25,0.58768805]
[1756956545673,0.20436387,852.0,851.26,0.58768805]
[1756956545873,0.20436387,852.0,851.27,0.58768805]
[1756956546077,1.5724004,851.94,851.28,0.58768805]
[1756956546275,1.5724004,851.77,850.78,0.78870832]
[1756956546574,1.5724004,851.78,850.79,1.29378977]
[1756956546777,1.5724004,851.7,850.8,2.08249809]
[1756956547078,1.5724004,851.7,850.81,1.29378977]
[1756956547277,1.5724004,851.7,850.82,1.29378977]
[1756956547574,1.5724004,851.73,850.83,1.29378977]
[1756956547778,1.5724004,851.74,850.84,1.29378977]
[1756956547976,1.5724004,851.74,850.85,1.29378977]
[1756956548178,1.5724004,851.74,850.86,1.29378977]
[1756956548376,1.5724004,851.74,850.57,1.0501474]
[1756956548377,1.5724004,851.72,850.87,1.29378977]
[1756956548579,1.5724004,851.68,850.88,1.29378977]
[1756956548781,1.5724004,851.68,850.89,1.29378977]
[1756956548981,1.5724004,851.67,850.9,1.29378977]
[1756956549177,1.5724004,851.67,850.91,1.29378977]
[1756956549375,1.5724004,851.67,850.92,1.29378977]
[1756956549580,1.5724004,851.67,850.93,1.29378977]
[1756956549778,1.5724004,851.7,850.94,1.29378977]
[1756956550076,1.5724004,851.7,850.72,0.78870832]
[1756956550077,1.5724004,851.69,850.95,1.29378977]
[1756956550378,0.20436387,852.0,850.09,0.20436687]
[1756956550379,1.5724004,851.68,850.96,1.29378977]
[1756956550579,1.5724004,851.71,850.97,1.29378977]
[1756956550781,1.5724004,851.71,850.98,1.29378977]
[1756956551081,1.5724004,851.7,850.99,1.29378977]
[1756956551278,1.5724004,851.69,851.0,1.29378977]
[1756956551482,1.5724004,851.69,851.01,1.29378977]
[1756956551678,1.5724004,851.69,851.02,0.58763495]
[1756956551883,1.5724004,851.69,851.03,0.58763495]
[1756956552082,1.5724004,851.69,850.09,0.20436687]
[1756956552083,1.5724004,851.68,851.04,0.58763495]
[1756956552379,1.5724004,851.68,851.05,0.58763495]
[1756956552582,1.5724004,851.68,851.06,0.58763495]
[1756956552783,1.5724004,851.68,851.07,0.58763495]
[1756956552985,1.5724004,851.68,851.08,0.58763495]
[1756956553183,1.5724004,851.68,851.09,0.58763495]
[1756956553384,1.5724004,851.68,851.1,0.58763495]
[1756956553585,1.5724004,851.68,851.11,0.58763495]
[1756956553785,1.5724004,851.68,851.12,0.58763495]
[1756956553984,1.5724004,851.68,851.13,0.58763495]
[1756956554182,1.5724004,851.68,851.14,0.58763495]
[1756956554385,1.5724004,851.68,850.66,0.78870832]
[1756956554683,1.5724004,851.68,850.67,1.29453914]
[1756956554985,1.5724004,851.68,850.68,1.29453914]
[1756956555182,1.5724004,851.68,850.69,1.29453914]
[1756956555485,1.5724004,851.68,850.7,1.29453914]
[1756956555680,1.5724004,851.68,850.71,1.29453914]
[1756956555882,1.5724004,851.68,850.72,1.29453914]
[1756956556082,1.5724004,851.68,850.73,1.29453914]
[1756956556281,1.5724004,851.68,850.74,1.29453914]
[1756956556481,1.5724004,851.68,850.75,1.29453914]
[1756956556785,1.5724004,851.68,850.76,1.29453914]
[1756956557081,1.5724004,851.7,850.77,1.29453914]
[1756956557286,1.5724004,851.82,850.78,1.29453914]
[1756956557482,1.5724004,851.81,850.79,1.29453914]
[1756956557686,1.5724004,851.81,850.8,1.29453914]
[1756956557981,1.5724004,851.81,850.81,1.29453914]
[1756956558182,1.5724004,851.81,850.82,1.29453914]
[1756956558386,1.5724004,851.81,850.83,1.29453914]
[1756956558580,1.5724004,851.81,850.84,1.29453914]
[1756956558786,1.5724004,851.81,850.85,1.2946076]
[1756956559083,1.5724004,851.82,850.86,1.2946076]
[1756956559290,1.5724004,851.82,850.87,1.2946076]
[1756956559488,1.5724004,851.82,850.88,1.2946076]
[1756956559685,1.5724004,851.77,850.89,1.2946076]
[1756956559887,1.5724004,851.77,850.9,1.2946076]